fUST/lending_fUST_20260331
["ID","MTS","AMOUNT","RATE_DAILY","PERIOD"]
[419158063,1774962643629,-311.16885622,0.00021321,2]
[419158064,1774962643639,-389.40729437,0.00021321,2]
[419158065,1774962643651,-610.59270563,0.00021321,2]
[419158066,1774962643660,-1004.48927398,0.00021321,2]
[419158067,1774962643669,-592.11088367,0.00021321,2]
[419158068,1774962643680,-298.84574358,0.00021321,2]
[419158069,1774962643691,-109.04337275,0.00021321,2]
[419158070,1774962643701,-448.95662725,0.00021321,2]
[419158072,1774962643945,-5000.0,0.00019413,2]
[419158073,1774962643956,-652.38,0.00020617,120]
[419158074,1774962643965,-652.38,0.00020617,120]
[419158075,1774962643975,-652.38,0.00020617,120]
[419158076,1774962643984,-652.38,0.00020617,120]
[419158077,1774962643994,-652.38,0.00020617,120]
[419158078,1774962644003,-652.38,0.00020617,120]
[419158079,1774962644013,-652.59742177,0.00020617,120]
[419158080,1774962644023,-552.05094455,0.00021321,2]
[419158081,1774962644032,-1000.0,0.00021321,2]
[419158082,1774962644042,-1000.0,0.00021321,2]
[419158083,1774962644051,-1000.64324138,0.00021321,2]
[419158084,1774962644060,-1126.43547616,0.00021321,2]
[419158085,1774962644070,-1000.0,0.00021321,2]
[419158086,1774962644079,-305.88349587,0.00021321,2]
[419158087,1774962644089,-1000.0,0.00021321,2]
[419158088,1774962644098,-1000.0,0.00021321,2]
[419158089,1774962644108,-1000.0,0.00021321,2]
[419158090,1774962644117,-1000.0,0.00021321,2]
[419158091,1774962644126,-1001.67017803,0.00021321,2]
[419158092,1774962644136,-250.0,0.00021321,2]
[419158093,1774962644146,-267.72522221,0.00021332,2]
[419158094,1774962644158,-354.06307331,0.00021332,2]
[419158095,1774962644168,-644.79446246,0.00021387,2]
[419158096,1774962644178,-1001.92144616,0.00021421,2]
[419158097,1774962644188,-469.56440774,0.00021421,2]
[419158098,1774962644198,-1000.8458419,0.00021421,2]
[419158099,1774962644207,-1000.77512727,0.00021421,2]
[419158100,1774962644217,-1000.0,0.00021421,2]
[419158101,1774962644227,-658.7963547,0.00021421,2]
[419158102,1774962644237,-500.0,0.00021428,2]
[419158103,1774962644246,-668.65185757,0.00021442,2]
[419158104,1774962644255,-693.3919763,0.00021497,2]
[419158105,1774962644265,-500.0,0.0002155,2]
[419158106,1774962644274,-719.04747942,0.00021552,2]
[419158107,1774962644283,-1501.80524928,0.00021568,2]
[419158108,1774962644293,-1502.62700484,0.00021568,2]
[419158109,1774962644302,-462.03216907,0.00021568,2]
[419158110,1774962644311,-1501.41899138,0.00021568,2]
[419158111,1774962644320,-1501.26368872,0.00021568,2]
[419158112,1774962644329,-1502.15469879,0.00021568,2]
[419158113,1774962644339,-1317.1694256,0.00021568,2]
[419158114,1774962644351,-184.3983294,0.00021568,2]
[419158115,1774962644361,-1502.12166846,0.00021568,2]
[419158116,1774962644370,-1502.03507621,0.00021568,2]
[419158117,1774962644379,-1500.0,0.00021568,2]
[419158118,1774962644389,-1501.03454611,0.00021568,2]
[419158119,1774962644399,-1501.94841028,0.00021568,2]
[419158120,1774962644409,-200.5700854,0.00021568,2]
[419158121,1774962644419,-1500.0,0.00021568,2]
[419158122,1774962644428,-1501.47451824,0.00021568,2]
[419158123,1774962644438,-424.00568027,0.00021568,2]
[419158124,1774962644449,-1077.58795073,0.00021568,2]
[419158125,1774962644458,-179.54020489,0.00021568,2]
[419158126,1774962644474,-393.39265323,0.00021568,2]
[419158127,1774962644487,-928.19799662,0.00021568,2]
[419158128,1774962644496,-404.66528938,0.00021568,2]
[419158129,1774962644510,-1097.04542339,0.00021568,2]
[419158130,1774962644521,-1636.60384742,0.00021568,2]
[419158131,1774962644530,-1211.80948902,0.00021568,2]
[419158132,1774962644542,-290.04815251,0.00021568,2]
[419158133,1774962644553,-745.65223616,0.00021607,2]
[419158134,1774962644563,-773.2413689,0.00021662,2]
[419158135,1774962644573,-500.0,0.00021702,2]
[419158136,1774962644582,-801.85129955,0.00021717,2]
[419158137,1774962644592,-831.51979763,0.00021772,2]
[419158138,1774962644602,-501.24596634,0.00021825,2]
[419158139,1774962644612,-495.66034143,0.00021825,2]
[419158140,1774962644622,-1347.79896861,0.00021825,2]
[419158141,1774962644635,-1139.35421348,0.00021825,2]
[419158142,1774962644646,-1190.32010246,0.00021868,2]
[419158143,1774962644655,-1500.0,0.00021868,2]
[419158144,1774962644664,-1401.48943324,0.00021868,2]
[419158145,1774962644673,-1403.82864524,0.00021868,2]
[419158146,1774962644685,-97.50071228,0.00021868,2]
[419158147,1774962644696,-1503.32963871,0.00021868,2]
[419158148,1774962644705,-1179.33502546,0.00021868,2]
[419158149,1774962644716,-1000.0,0.00021868,2]
[419158150,1774962644727,-1500.0,0.00021868,2]
[419158151,1774962644737,-350.0,0.00021868,2]
[419158152,1774962644747,-803.016563,0.00021918,2]
[419158153,1774962644758,-803.016563,0.00021918,2]
[419158154,1774962644768,-164.74607274,0.00021918,2]
[419158155,1774962644780,-638.27049026,0.00021918,2]
[419158156,1774962644870,-803.016563,0.00021918,2]
[419158157,1774962644881,-803.016563,0.00021918,2]
[419158158,1774962644890,-803.016563,0.00021918,2]
[419158159,1774962644899,-803.016563,0.00021918,2]
[419158160,1774962644909,-803.016563,0.00021918,2]
[419158161,1774962644920,-803.016563,0.00021918,2]
[419158162,1774962644929,-803.016563,0.00021918,2]
[419158163,1774962644941,-803.016563,0.00021918,2]
[419158164,1774962644950,-803.016563,0.00021918,2]
[419158165,1774962644961,-500.0,0.00021976,2]
[419158166,1774962644971,-154.0,0.00022,2]
[419158167,1774962644981,-168.0,0.00022,2]
[419158168,1774962644991,-198.0,0.00022,2]
[419158169,1774962645001,-171.0,0.00022,2]
[419158170,1774962645011,-338.04583811,0.00022098,2]
[419158171,1774962645021,-2000.0,0.00022116,2]
[419158172,1774962645030,-500.0,0.0002225,2]
[419158173,1774962645039,-161.34201541,0.00022308,2]
[419158174,1774962645049,-500.0,0.00022308,2]
[419158175,1774962645058,-500.0,0.00022308,2]
[419158176,1774962645068,-571.30233578,0.00022308,2]
[419158177,1774962645077,-500.0,0.00022308,2]
[419158178,1774962645086,-500.0,0.00022308,2]
[419158179,1774962645096,-1123.31954942,0.00022373,2]
[419158180,1774962645106,-60.10465629,0.00022416,2]
[419158181,1774962645118,-1939.89534371,0.00022416,2]
[419158182,1774962645128,-450.0,0.00022416,2]
[419158183,1774962645138,-232.74751766,0.00022524,2]
[419158184,1774962645150,-267.25248234,0.00022524,2]
[419158185,1774962645159,-500.45621459,0.00022573,2]
[419158186,1774962645168,-24.45840124,0.00022573,2]
[419158189,1774962646674,-475.54159876,0.00022573,2]
[419158190,1774962646683,-324.10994142,0.00022573,2]
[419158191,1774962646695,-175.89005858,0.00022573,2]
[419158192,1774962646704,-500.0,0.00022573,2]
[419158193,1774962646714,-161.28935283,0.000226,2]
[419158194,1774962646724,-222.39146286,0.000226,2]
[419158195,1774962646732,-250.29061303,0.000226,2]
[419158196,1774962646742,-500.0,0.000226,2]
[419158197,1774962646752,-2500.0,0.00022664,2]
[419158198,1774962646762,-286.076,0.00022693,2]
[419158199,1774962646771,-546.0625127,0.00022693,2]
[419158200,1774962646782,-1323.9314873,0.00022693,2]
[419158201,1774962646791,-642.0,0.00022693,2]
[419158202,1774962646801,-500.0,0.00022798,2]
[419158203,1774962646810,-1001.40890293,0.00022856,2]
[419158204,1774962646822,-1053.76122976,0.00022856,2]
[419158205,1774962646832,-1002.07229194,0.00022856,2]
[419158206,1774962646841,-1001.61341761,0.00022856,2]
[419158207,1774962646851,-1001.825555,0.000229,2]
[419158208,1774962646862,-2500.0,0.00022964,2]
[419158209,1774962646872,-550.0,0.00022964,2]
[419158210,1774962646882,-198.0,0.00023,2]
[419158211,1774962646892,-171.0,0.00023,2]
[419158212,1774962646902,-270.83333333,0.00023,2]
[419158213,1774962646912,-481.7171225,0.00023072,2]
[419158214,1774962646935,-18.2828775,0.00023072,2]
[419158215,1774962646946,-476.0103385,0.000231,2]
[419158216,1774962646958,-60.9896615,0.000231,2]
[419158217,1774962646967,-353.4068385,0.00023121,2]
[419158218,1774962646980,-648.25287161,0.00023121,2]
[419158219,1774962646991,-1001.97083879,0.00023121,2]
[419158220,1774962647002,-1003.76074336,0.00023121,2]
[419158221,1774962647011,-763.93540224,0.00023148,2]
[419158222,1774962647021,-2588.72902433,0.00023212,2]
[419158223,1774962647034,-411.27097567,0.00023212,2]
[419158224,1774962647045,-720.0,0.00023245,10]
[419158225,1774962647054,-500.0,0.00023345,2]
[419158226,1774962647063,-500.0,0.000234,9]
[419158227,1774962647073,-1000.0,0.000234,2]
[419158228,1774962647083,-3000.0,0.00023512,2]
[419158229,1774962647095,-650.0,0.00023512,2]
[419158230,1774962647105,-218.818095,0.00023579,14]
[419158231,1774962647115,-373.851154,0.00023579,14]
[419158232,1774962647126,-500.0,0.00023619,2]
[419158233,1774962647136,-3500.0,0.0002376,2]
[419158234,1774962647146,-202.0,0.00023808,11]
[419158235,1774962647155,-500.0,0.00023893,2]
[419158236,1774962647164,-1000.0,0.000239,2]
[419158237,1774962647174,-198.0,0.00024,2]
[419158238,1774962647183,-171.0,0.00024,2]
[419158239,1774962647192,-2079.70799038,0.0002406,2]
[419158240,1774962647202,-750.0,0.0002406,2]
[419158241,1774962647212,-352.378737,0.00024062,14]
[419158242,1774962647221,-160.0,0.00024062,14]
[419158243,1774962647231,-232.492438,0.00024062,14]
[419158244,1774962647240,-304.984877,0.00024062,14]
[419158245,1774962647251,-500.0,0.00024167,2]
[419158246,1774962647260,-4000.0,0.00024308,2]
[419158247,1774962647270,-1000.0,0.000244,2]
[419158248,1774962647279,-524.28439082,0.00024441,2]
[419158249,1774962647289,-850.0,0.00024608,2]
[419158250,1774962647299,-1459.16609561,0.00024681,2]
[419158251,1774962647308,-4500.0,0.00024856,2]
[419158252,1774962647318,-1000.0,0.000249,2]
[419158253,1774962647327,-198.0,0.00025,2]
[419158254,1774962647336,-171.0,0.00025,2]
[419158255,1774962647346,-324.8899299,0.00025109,2]
[419158256,1774962647356,-324.8899299,0.00025109,2]
[419158257,1774962647366,-950.0,0.00025156,2]
[419158258,1774962647375,-301.64491892,0.00025278,2]
[419158259,1774962647387,-344.73705019,0.00025278,2]
[419158260,1774962647399,-538.65164093,0.00025278,2]
[419158261,1774962647409,-352.8024043,0.000253,2]
[419158262,1774962647420,-1000.0,0.000254,2]
[419158263,1774962647431,-5000.0,0.00025404,2]
[419158264,1774962647440,-219951.40265567,0.00025444,2]
[419158265,1774962647452,-1257.42635663,0.00025444,2]
[419158266,1774962749404,875.0,0.00035887,120]
[419158267,1774962755888,500.0,0.00035895,120]
[419158268,1774962761955,1702.31,0.00035895,120]
[419158269,1774962764211,750.0000002,0.00035895,120]
[419158270,1774962789201,500.0,0.00035895,120]
[419158273,1774962892279,1200.0,0.00035895,120]
[419158283,1774963039865,375.0000001,0.00035821,120]
[419158284,1774963044289,437.5,0.00035821,120]
[419158285,1774963054462,500.0,0.00035821,120]
[419158293,1774963084332,250.0,0.00035821,120]
[419158296,1774963242075,3002.14,0.00035922,120]
[419158298,1774963266576,9918.25,0.00035922,120]
[419158302,1774963353678,250.0,0.00035922,120]
[419158303,1774963355019,500.0,0.00035922,120]
[419158304,1774963362912,187.5000001,0.00035922,120]
[419158316,1774963650782,218.75,0.00035922,120]
[419158317,1774963653919,500.0,0.00035922,120]
[419158318,1774963732317,5000.0,0.00035922,120]
[419158319,1774963744326,2000.0,0.00035922,120]
[419158321,1774963762258,2000.0,0.00035922,120]
[419158358,1774963838014,-1000.0,0.00013699,2]
[419158359,1774963838025,-186.93,0.000211,2]
[419158360,1774963838034,-300.0,0.0002144,10]
[419158361,1774963838045,-300.0,0.0002144,10]
[419158362,1774963838055,-300.0,0.0002144,10]
[419158363,1774963838065,-300.0,0.0002144,10]
[419158364,1774963838074,-300.0,0.0002144,10]
[419158365,1774963838084,-300.0,0.0002144,10]
[419158366,1774963838093,-300.0,0.0002144,10]
[419158367,1774963838103,-300.0,0.0002144,10]
[419158368,1774963838113,-300.0,0.0002144,10]
[419158369,1774963838122,-300.0,0.0002144,10]
[419158370,1774963838131,-300.0,0.0002144,10]
[419158371,1774963838141,-300.0,0.0002144,10]
[419158372,1774963838152,-300.0,0.0002144,10]
[419158373,1774963838160,-300.0,0.0002144,10]
[419158374,1774963838170,-300.0,0.0002144,10]
[419158375,1774963838180,-158.0,0.00022,2]
[419158376,1774963838189,-153.0,0.00022,2]
[419158377,1774963838199,-158.0,0.00023,2]
[419158378,1774963838210,-153.0,0.00023,2]
[419158379,1774963838221,-270.83333333,0.00023,2]
[419158380,1774963838231,-179.4749211,0.00023148,2]
[419158381,1774963838241,-158.0,0.00023288,9]
[419158382,1774963838252,-599.60298507,0.00023319,2]
[419158383,1774963838263,-500.0,0.00023319,2]
[419158384,1774963838273,-2312.83697232,0.00023319,2]
[419158385,1774963838283,-15380.3736,0.00023333,2]
[419158386,1774963838293,-242.34978688,0.00023374,2]
[419158387,1774963838303,-158.0,0.00024,2]
[419158388,1774963838312,-400.0,0.00024,2]
[419158389,1774963838322,-153.0,0.00024,2]
[419158390,1774963838331,-160.0,0.00024,2]
[419158391,1774963838341,-196.1649098,0.00024287,2]
[419158392,1774963838352,-324.8899299,0.00024287,2]
[419158393,1774963838362,-1571.17974797,0.00024681,2]
[419158394,1774963838371,-195.937,0.00024681,7]
[419158395,1774963838381,-160.0,0.000247,7]
[419158396,1774963838391,-160.0,0.000247,5]
[419158397,1774963838400,-160.0,0.000247,4]
[419158398,1774963838410,-160.0,0.000247,5]
[419158399,1774963838419,-160.0,0.000247,4]
[419158400,1774963838428,-158.0,0.00025,2]
[419158401,1774963838438,-153.26748917,0.00025,2]
[419158402,1774963838447,-304.375786,0.00025109,2]
[419158403,1774963838457,-454.7958377,0.00025109,2]
[419158404,1774963838466,-449.2654864,0.00025109,2]
[419158405,1774963838475,-774.88270457,0.00025144,2]
[419158406,1774963838485,-159.99317337,0.00025144,2]
[419158407,1774963838494,-204.06469733,0.00025144,2]
[419158408,1774963838503,-367.3164552,0.00025144,2]
[419158409,1774963838512,-547.0472891,0.000252,87]
[419158410,1774963838521,-2735.54850163,0.000252,87]
[419158411,1774963838531,-2250.84128296,0.000252,87]
[419158412,1774963838540,-1766.13406436,0.000252,87]
[419158413,1774963838549,-2020.04939871,0.000252,87]
[419158414,1774963838559,-1283.5483439,0.000252,87]
[419158415,1774963838569,-160.0,0.000252,6]
[419158416,1774963838579,-182.849341,0.00025207,2]
[419158417,1774963838589,-653.00703146,0.00025207,2]
[419158418,1774963838599,-709.05352591,0.00025244,2]
[419158419,1774963838609,-5859.76287838,0.00025344,2]
[419158420,1774963838620,-200.0,0.00025383,2]
[419158421,1774963838630,-160.0,0.000254,7]
[419158422,1774963838640,-160.0,0.000254,7]
[419158423,1774963838651,-154.0,0.00025444,3]
[419158424,1774963838661,-154.0,0.00025444,3]
[419158425,1774963838670,-151.0,0.00025444,3]
[419158426,1774963838681,-292.88417574,0.00025444,3]
[419158427,1774963838691,-151.0,0.00025444,3]
[419158428,1774963838701,-200.0,0.00025444,3]
[419158429,1774963838711,-151.0,0.00025444,3]
[419158430,1774963838721,-151.0,0.00025444,3]
[419158431,1774963838731,-151.0,0.00025444,3]
[419158432,1774963838740,-151.0,0.00025444,3]
[419158433,1774963838751,-646.0,0.00025444,3]
[419158434,1774963838761,-151.0,0.00025444,3]
[419158435,1774963838770,-646.0,0.00025444,3]
[419158436,1774963838780,-151.0,0.00025444,3]
[419158437,1774963838790,-646.0,0.00025444,3]
[419158438,1774963838799,-151.0,0.00025444,3]
[419158439,1774963838809,-646.0,0.00025444,3]
[419158440,1774963838818,-151.0,0.00025444,3]
[419158441,1774963838827,-646.0,0.00025444,3]
[419158442,1774963838836,-151.0,0.00025444,3]
[419158443,1774963838846,-646.0,0.00025444,3]
[419158444,1774963838855,-151.0,0.00025444,3]
[419158445,1774963838865,-646.0,0.00025444,3]
[419158446,1774963838874,-646.0,0.00025444,3]
[419158447,1774963838883,-151.0,0.00025444,3]
[419158448,1774963838894,-646.0,0.00025444,3]
[419158449,1774963838904,-151.0,0.00025444,3]
[419158450,1774963838914,-183.12053937,0.00025444,3]
[419158451,1774963838924,-151.0,0.00025444,3]
[419158452,1774963838934,-151.0,0.00025444,3]
[419158453,1774963838944,-151.0,0.00025444,3]
[419158454,1774963838954,-151.0,0.00025444,3]
[419158455,1774963838963,-151.0,0.00025444,3]
[419158456,1774963838972,-151.0,0.00025444,3]
[419158457,1774963838982,-151.0,0.00025444,3]
[419158458,1774963838992,-151.0,0.00025444,3]
[419158459,1774963839002,-151.0,0.00025444,3]
[419158460,1774963839013,-151.0,0.00025444,3]
[419158461,1774963839023,-151.0,0.00025444,3]
[419158462,1774963839033,-151.0,0.00025444,3]
[419158463,1774963839042,-151.0,0.00025444,3]
[419158464,1774963839052,-151.0,0.00025444,3]
[419158465,1774963839060,-151.0,0.00025444,3]
[419158466,1774963839068,-151.0,0.00025444,3]
[419158467,1774963839077,-151.0,0.00025444,3]
[419158468,1774963839085,-151.0,0.00025444,3]
[419158469,1774963839093,-151.0,0.00025444,3]
[419158470,1774963839101,-195.37826397,0.00025444,3]
[419158471,1774963839109,-90036.3012,0.00025444,2]
[419158472,1774963839117,-5000.0,0.00025444,2]
[419158473,1774963839127,-14941.6006,0.00025444,2]
[419158474,1774963839134,-500.0,0.00025444,9]
[419158475,1774963839142,-500.0,0.00025444,9]
[419158476,1774963839150,-270.83333333,0.0002545,3]
[419158477,1774963839158,-500.0,0.00025473,2]
[419158478,1774963839166,-500.0,0.00025473,2]
[419158479,1774963839174,-500.0,0.00025473,2]
[419158480,1774963839181,-500.0,0.00025473,2]
[419158481,1774963839189,-500.0,0.00025473,2]
[419158482,1774963839196,-500.0,0.00025473,2]
[419158483,1774963839204,-500.0,0.00025473,2]
[419158484,1774963839212,-500.0,0.00025473,2]
[419158485,1774963839220,-500.0,0.00025473,2]
[419158486,1774963839227,-500.0,0.00025473,2]
[419158487,1774963839235,-500.0,0.00025473,2]
[419158488,1774963839244,-500.0,0.00025473,2]
[419158489,1774963839252,-500.0,0.00025473,2]
[419158490,1774963839261,-198.38878285,0.00025473,2]
[419158491,1774963839269,-7544.0,0.000255,3]
[419158492,1774963839278,-285.70209531,0.00025577,2]
[419158493,1774963839288,-1020.32348665,0.00025577,2]
[419158494,1774963839296,-837.9,0.000259,2]
[419158495,1774963839303,-324.8899299,0.00025928,2]
[419158496,1774963839311,-455.1219555,0.00025928,2]
[419158497,1774963839320,-196.2308133,0.0002593,2]
[419158498,1774963839330,-252.7682276,0.0002593,2]
[419158499,1774963839339,-151.0106085,0.0002593,2]
[419158500,1774963839349,-410.99960623,0.00025949,2]
[419158501,1774963839359,-1467.79655496,0.00025949,2]
[419158502,1774963839368,-600.0,0.00025952,10]
[419158503,1774963839380,-9990.33231038,0.00026,2]
[419158504,1774963839390,-158.0,0.00026,2]
[419158505,1774963839399,-1000.0,0.00026021,2]
[419158506,1774963839409,-1000.0,0.00026021,2]
[419158507,1774963839418,-1000.0,0.00026021,2]
[419158508,1774963839427,-1000.0,0.00026021,2]
[419158509,1774963839436,-200.0,0.00026021,2]
[419158510,1774963839446,-426.03015484,0.00026021,2]
[419158511,1774963839456,-1000.0,0.00026021,2]
[419158512,1774963839465,-1000.0,0.00026021,2]
[419158513,1774963839474,-604.42208699,0.00026021,2]
[419158514,1774963839484,-391.94741264,0.00026021,2]
[419158515,1774963839493,-1000.0,0.00026021,2]
[419158516,1774963839502,-500.0,0.00026027,2]
[419158517,1774963839511,-500.0,0.00026059,2]
[419158518,1774963839521,-500.0,0.00026059,2]
[419158519,1774963839530,-500.0,0.00026059,2]
[419158520,1774963839541,-500.0,0.00026059,2]
[419158521,1774963839551,-500.0,0.00026059,2]
[419158522,1774963839560,-500.0,0.00026059,2]
[419158523,1774963839569,-500.0,0.00026059,2]
[419158524,1774963839578,-500.0,0.00026059,2]
[419158525,1774963839588,-500.0,0.00026059,2]
[419158526,1774963839598,-156.33603038,0.00026059,2]
[419158527,1774963839608,-500.0,0.00026059,2]
[419158528,1774963839618,-500.0,0.00026059,2]
[419158529,1774963839627,-500.0,0.00026059,2]
[419158530,1774963839636,-500.0,0.00026059,2]
[419158531,1774963839646,-196.05989232,0.0002616,2]
[419158532,1774963839656,-1000.0,0.00026254,120]
[419158534,1774963839666,-1000.0,0.00026254,120]
[419158535,1774963839675,-1000.0,0.00026254,120]
[419158536,1774963839685,-1000.0,0.00026254,120]
[419158537,1774963839694,-1000.0,0.00026254,120]
[419158538,1774963839703,-1000.0,0.00026254,120]
[419158539,1774963839713,-1096.01501487,0.00026532,2]
[419158541,1774963839723,-200.0,0.00026532,2]
[419158542,1774963839732,-465.83280651,0.00026568,2]
[419158543,1774963839742,-501.23741535,0.00026568,2]
[419158544,1774963839751,-500.0,0.00026568,2]
[419158545,1774963839760,-500.0,0.00026568,2]
[419158546,1774963839771,-1000.0,0.00026568,2]
[419158547,1774963839780,-1000.0,0.00026575,2]
[419158549,1774963839792,-502.10176188,0.00026607,2]
[419158551,1774963839801,-500.0,0.00026607,2]
[419158553,1774963839811,-1000.0,0.00026607,2]
[419158554,1774963839820,-837.9,0.000269,2]
[419158555,1774963839829,-437.5,0.00026982,120]
[419158556,1774963839839,-187.5000001,0.00026982,120]
[419158557,1774963839849,-218.75,0.00026982,30]
[419158558,1774963839858,-267.60395854,0.00027,2]
[419158559,1774963839868,-753.46,0.00027,2]
[419158560,1774963839877,-170.72596215,0.00027,2]
[419158561,1774963839886,-1563.97839735,0.00027123,2]
[419158562,1774963839896,-500.0,0.00027155,2]
[419158563,1774963839908,-161.81755201,0.00027289,5]
[419158564,1774963839918,-540.63198242,0.00027344,2]
[419158565,1774963839928,-1483.3763008,0.00027373,2]
[419158566,1774963839938,-779.42287858,0.00027397,2]
[419158567,1774963839948,-227.03199157,0.00027397,2]
[419158568,1774963839958,-186.0,0.00027397,120]
[419158569,1774963839967,-229.56269015,0.00027397,2]
[419158570,1774963839977,-2000.0,0.00027397,10]
[419158571,1774963839987,-960645.02122438,0.00027444,2]
[419158572,1774963840001,-4869.65549784,0.00027444,2]
[419158573,1774963840012,-37633.94248179,0.00027444,2]
[419158575,1774963840695,-160.0,0.000252,6]
[419158576,1774963840704,-5730.6388292,0.00027444,2]
[419158589,1774963843158,-1047.45316531,0.00024681,2]
[419158590,1774963843167,-12245.14683467,0.00027444,2]
[419158599,1774963846263,-17732.25834571,0.00027444,2]
[419158600,1774963846320,-3651.83035293,0.00027444,2]
[419158601,1774963846332,-709.05352591,0.00027444,2]
[419158609,1774963955229,264.0,0.00035922,120]
[419158612,1774964256206,5250.5102121,0.0003591,120]
[419158613,1774964285232,1204.0,0.0003591,120]
[419158614,1774964306496,3796.0,0.0003591,120]
[419158615,1774964326961,5745.0,0.0003591,120]
[419158616,1774964346333,7255.0,0.0003591,120]
[419158617,1774964364065,8286.0,0.0003591,120]
[419158618,1774964381186,5714.0,0.0003591,120]
[419158620,1774964663718,160.63209756,0.00035911,120]
[419158661,1774965032040,-1000.0,0.00013699,2]
[419158662,1774965032050,-10000.0,0.00023081,2]
[419158663,1774965032060,-270.83333333,0.00023205,2]
[419158664,1774965032070,-1102.1439149,0.00023272,2]
[419158665,1774965032093,-728.1256811,0.00023272,2]
[419158666,1774965032104,-274.24137621,0.00023272,30]
[419158703,1774965040454,-725.75862379,0.00023272,30]
[419158705,1774965040463,-157.0,0.00023315,9]
[419158707,1774965040473,-1094.63,0.00023345,2]
[419158709,1774965040483,-150.636,0.00023345,2]
[419158710,1774965040492,-465.991,0.00023345,2]
[419158712,1774965040501,-300.0,0.00023811,10]
[419158714,1774965040510,-300.0,0.00023811,10]
[419158716,1774965040519,-300.0,0.00023811,10]
[419158718,1774965040528,-300.0,0.00023811,10]
[419158720,1774965040538,-300.0,0.00023811,10]
[419158722,1774965040547,-300.0,0.00023811,10]
[419158724,1774965040556,-300.0,0.00023811,10]
[419158726,1774965040565,-300.0,0.00023811,10]
[419158728,1774965040574,-300.0,0.00023811,10]
[419158730,1774965040583,-300.0,0.00023811,10]
[419158733,1774965040592,-300.0,0.00023811,10]
[419158736,1774965040601,-300.0,0.00023811,10]
[419158739,1774965040610,-300.0,0.00023811,10]
[419158742,1774965040619,-300.0,0.00023811,10]
[419158745,1774965040628,-300.0,0.00023811,10]
[419158747,1774965040637,-600.0,0.00024286,10]
[419158750,1774965040646,-16547.5966057,0.00024626,2]
[419158753,1774965040656,-4281.38190971,0.00024898,2]
[419158755,1774965040665,-4281.38190971,0.00024898,2]
[419158757,1774965040674,-4281.38190971,0.00024898,2]
[419158758,1774965040684,-4281.38190971,0.00024898,2]
[419158760,1774965040693,-4281.38190971,0.00024898,2]
[419158762,1774965040702,-4281.38190971,0.00024898,2]
[419158764,1774965040712,-4281.38190971,0.00024898,2]
[419158766,1774965040720,-4281.38190971,0.00024898,2]
[419158768,1774965040729,-4281.38190971,0.00024898,2]
[419158770,1774965040739,-4281.38190971,0.00024898,2]
[419158772,1774965040748,-4281.38190971,0.00024898,2]
[419158774,1774965040757,-4281.38190971,0.00024898,2]
[419158776,1774965040766,-4281.38190971,0.00024898,2]
[419158778,1774965040776,-4281.38190971,0.00024898,2]
[419158780,1774965040786,-4281.38190971,0.00024898,2]
[419158782,1774965040796,-4281.38190971,0.00024898,2]
[419158784,1774965040805,-4281.38190971,0.00024898,2]
[419158786,1774965040814,-4281.38190971,0.00024898,2]
[419158788,1774965040824,-4281.38190971,0.00024898,2]
[419158790,1774965040833,-4281.38190971,0.00024898,2]
[419158792,1774965040843,-4281.38190971,0.00024898,2]
[419158794,1774965040852,-4281.38190971,0.00024898,2]
[419158796,1774965040861,-4281.38190971,0.00024898,2]
[419158798,1774965040870,-4281.38190971,0.00024898,2]
[419158800,1774965040879,-4281.38190971,0.00024898,2]